bitfinex-derivatives/quotes_SOLF0:USTF0_20220104
["timestamp","ask_amount","ask_price","bid_price","bid_amount"]
[1641288536630,12.62482387,167.75,167.68,63.59160135]
[1641288536832,0.73239865,167.73,167.67,12.61354396]
[1641288537033,0.73239865,167.74,167.69,28.79942309]
[1641288537233,0.73239865,167.74,167.69,31.06702444]
[1641288537434,3.07306061,167.75,167.69,31.06702444]
[1641288537834,12.62482387,167.76,167.7,1.13463309]
[1641288538035,0.73239865,167.75,167.7,1.13463309]
[1641288538841,3.07341403,167.74,167.7,1.13463309]
[1641288539538,15.6982379,167.77,167.7,1.13463309]
[1641288539739,0.73239865,167.75,167.7,1.13463309]
[1641288539938,0.73239865,167.75,167.7,7.13463309]
[1641288541241,0.73239865,167.75,167.71,1.13463309]
[1641288541942,0.73239865,167.75,167.71,3.40223444]
[1641288542141,0.73239865,167.75,167.71,1.13463309]
[1641288543344,61.8267,167.78,167.71,1.13463309]
[1641288543546,0.73239865,167.75,167.71,1.13463309]
[1641288544645,0.73239865,167.75,167.72,2.26760135]
[1641288544847,0.73239865,167.76,167.71,1.13463309]
[1641288545044,61.8267,167.78,167.72,27.66479]
[1641288545247,0.73239865,167.75,167.71,6.83563309]
[1641288545846,0.73239865,167.75,167.72,1.13463309]
[1641288546747,0.73239865,167.73,167.71,1.13463309]
[1641288546950,33.62124829,167.8,167.71,1.13463309]
[1641288547752,0.73239865,167.73,167.71,7.80263309]
[1641288548050,0.73239865,167.75,167.71,7.80263309]
[1641288548253,12.62482387,167.78,167.71,7.80263309]
[1641288548453,0.73239865,167.74,167.71,7.80263309]
[1641288548651,4.96,167.74,167.72,1.13463309]
[1641288548853,0.73239865,167.73,167.72,1.13463309]
[1641288549251,0.73239865,167.73,167.7,6.0]
[1641288549552,3.80607745,167.73,167.7,6.0]
[1641288550152,3.0736788,167.72,167.7,6.0]
[1641288550753,0.73239865,167.73,167.7,6.0]
[1641288550954,0.73239865,167.73,167.71,1.13461018]
[1641288552156,12.62482387,167.76,167.71,1.13461018]
[1641288552357,0.73239865,167.74,167.71,1.13461018]
[1641288554255,12.62482387,167.76,167.72,2.26760135]
[1641288554455,12.62482387,167.76,167.73,2.26760135]
[1641288554956,3.07257698,167.76,167.73,3.40221153]
[1641288555155,12.62482387,167.77,167.75,27.66479]
[1641288555556,12.62482387,167.77,167.72,8.14460135]
[1641288555756,12.62482387,167.81,167.73,12.61354396]
[1641288556156,0.73239865,167.74,167.73,12.61354396]
[1641288556360,5.83539865,167.74,167.72,12.61354396]
[1641288556656,0.73239865,167.73,167.72,12.61354396]
[1641288557258,0.73239865,167.73,167.7,6.0]
[1641288558660,101.99711387,167.77,167.7,6.0]
[1641288558862,0.73239865,167.73,167.7,6.0]
[1641288559464,12.62482387,167.76,167.7,6.0]
[1641288559663,0.73239865,167.73,167.7,6.0]
[1641288560065,6.718,167.75,167.7,6.0]
[1641288560566,0.73239865,167.73,167.7,6.0]
[1641288560763,0.73239865,167.71,167.7,6.0]
[1641288560965,7.05139865,167.71,167.7,6.0]
[1641288561563,6.319,167.71,167.7,6.0]
[1641288561764,7.05139865,167.71,167.7,6.0]
[1641288562865,6.319,167.71,167.7,6.0]
[1641288563067,7.05139865,167.71,167.7,6.0]
[1641288566669,6.319,167.71,167.7,6.0]
[1641288566868,0.73239865,167.72,167.7,6.0]
[1641288567175,0.73239865,167.71,167.7,6.0]
[1641288569868,0.73239865,167.72,167.7,6.0]
[1641288571670,0.73239865,167.73,167.7,6.0]
[1641288571869,0.73239865,167.72,167.7,6.0]
[1641288572470,101.99711387,167.77,167.7,6.0]
[1641288572669,0.73239865,167.74,167.7,6.0]
[1641288573371,0.73239865,167.74,167.72,27.66479]
[1641288573570,74.33232387,167.77,167.72,27.66479]
[1641288573571,0.73239865,167.75,167.72,27.66479]
[1641288573770,12.62482387,167.77,167.7,6.0]
[1641288574373,0.73239865,167.74,167.7,6.0]
[1641288574570,4.20747495,167.73,167.7,6.0]
[1641288578374,4.20747495,167.74,167.7,26.71248068]
[1641288578572,4.20747495,167.74,167.71,4.0]
[1641288579173,4.20747495,167.75,167.71,12.61354396]
[1641288580473,4.20747495,167.75,167.71,18.61354396]
[1641288581374,4.9398736,167.75,167.71,18.61354396]
[1641288581573,4.20747495,167.75,167.71,18.61354396]
[1641288582376,0.73239865,167.76,167.71,18.61354396]
[1641288582575,12.62482387,167.79,167.72,2.26760135]
[1641288582777,0.73239865,167.78,167.72,2.26760135]
[1641288583078,0.73239865,167.79,167.71,12.26760135]
[1641288583279,27.66479,167.81,167.72,2.26760135]
[1641288583479,12.62482387,167.85,167.73,2.26760135]
[1641288583678,12.62482387,167.85,167.71,10.0]
[1641288583679,3.35722252,167.85,167.76,27.66479]
[1641288583879,3.35722252,167.85,167.76,32.06979]
[1641288584480,93.67999,167.86,167.76,35.06979]
[1641288584780,27.66479,167.86,167.76,35.06979]
[1641288584981,27.66479,167.86,167.76,32.06979]
[1641288585180,27.66479,167.86,167.76,96.97869]
[1641288585387,27.66479,167.86,167.76,99.97869]
[1641288585581,27.66479,167.86,167.76,96.97869]
[1641288585782,27.66479,167.86,167.79,27.66479]
[1641288587384,27.66479,167.86,167.76,99.97869]
[1641288587583,27.66479,167.86,167.76,96.97869]
[1641288587982,27.66479,167.86,167.76,99.97869]
[1641288588785,27.66479,167.86,167.76,96.97869]
[1641288589784,27.66479,167.86,167.76,99.97869]
[1641288589986,27.66479,167.86,167.79,27.66479]
[1641288595891,3.06958291,167.85,167.8,1.13607456]
[1641288596091,8.54658291,167.85,167.8,1.13607456]
[1641288596493,5.477,167.85,167.79,27.66479]
[1641288597293,5.477,167.85,167.76,36.36479]
[1641288597294,8.477,167.85,167.8,1.13607748]
[1641288597494,5.477,167.85,167.8,1.13607748]
[1641288597894,33.61929756,167.86,167.76,8.7]
[1641288598094,10.99259682,167.85,167.77,1.13590539]
[1641288598296,27.66479,167.8,167.77,1.13590539]
[1641288598494,32.59979,167.8,167.77,1.13590539]
[1641288598894,32.59979,167.8,167.76,8.7]
[1641288599096,29.83331101,167.8,167.76,8.7]
[1641288599294,29.83331101,167.8,167.77,1.13584069]
[1641288599994,29.83331101,167.8,167.74,1.13584069]
[1641288600999,4.935,167.8,167.74,1.13584069]
[1641288601397,68.12703945,167.84,167.74,1.13584069]
[1641288602398,27.66479,167.8,167.74,1.13584069]
[1641288603397,62.172,167.84,167.74,1.13584069]
[1641288603598,62.172,167.84,167.75,4.0]
[1641288603799,62.172,167.84,167.74,1.13584069]
[1641288603999,62.172,167.84,167.75,7.0]
[1641288604206,62.172,167.84,167.75,4.0]
[1641288604398,27.66479,167.83,167.74,1.13584069]
[1641288606405,27.66479,167.8,167.74,1.13584069]
[1641288606702,32.98179,167.8,167.74,1.13584069]
[1641288608903,5.317,167.8,167.76,4.0]
[1641288609104,27.66479,167.83,167.74,1.13584069]
[1641288609504,27.66479,167.83,167.74,6.95126849]
[1641288610306,27.66479,167.83,167.74,28.80063069]
[1641288610707,27.66479,167.83,167.74,34.80063069]
[1641288610907,27.66479,167.83,167.75,1.13584069]
[1641288612511,3.07063178,167.82,167.75,6.96878075]
[1641288613310,3.07063178,167.82,167.76,4.0]
[1641288614214,3.07063178,167.82,167.77,13.75405326]
[1641288615215,3.178e-05,167.82,167.77,13.75405326]
[1641288615813,27.66479,167.83,167.8,12.61821257]
[1641288616914,27.66479,167.83,167.77,13.75405326]
[1641288617616,27.66479,167.83,167.77,1.13584069]
[1641288619618,27.66479,167.83,167.76,12.61821257]
[1641288620219,27.66479,167.83,167.75,27.59115263]
[1641288620421,40.28300257,167.83,167.75,27.59115263]
[1641288620820,40.28300257,167.83,167.76,4.0]
[1641288622321,27.66479,167.83,167.76,16.61821257]
[1641288622920,27.66479,167.83,167.77,12.61821257]
[1641288624120,27.66479,167.83,167.79,12.61821257]
[1641288624720,27.66479,167.83,167.77,12.61821257]
[1641288627225,27.66479,167.83,167.76,16.61821257]
[1641288627925,27.66479,167.83,167.76,4.0]
[1641288628323,27.66479,167.83,167.76,7.0]
[1641288628824,27.66479,167.83,167.76,4.0]
[1641288629926,27.66479,167.83,167.75,27.59115263]
[1641288630927,27.66479,167.83,167.75,9.14]
[1641288631228,27.66479,167.83,167.76,4.0]
[1641288631632,40.28300257,167.83,167.76,4.0]
[1641288632236,27.66479,167.83,167.76,16.61821257]
[1641288632635,27.66479,167.83,167.76,12.61821257]
[1641288634039,27.66479,167.83,167.74,33.66479]
[1641288634239,12.61821257,167.81,167.74,33.66479]
[1641288636539,12.61821257,167.81,167.74,37.66479]
[1641288636739,12.61821257,167.82,167.74,50.28300257]
[1641288638741,93.50059,167.83,167.77,12.61821257]
[1641288638940,27.66479,167.83,167.77,12.61821257]
[1641288640643,27.66479,167.83,167.77,18.61821257]
[1641288642643,27.66479,167.83,167.77,25.38321257]
[1641288642842,27.66479,167.83,167.77,29.38321257]
[1641288643042,73.59321257,167.85,167.81,4.20632435]
[1641288643244,12.61821257,167.85,167.81,9.28732435]
[1641288644945,12.61821257,167.85,167.81,4.20632435]
[1641288646247,12.61821257,167.82,167.78,4.20632435]
[1641288648051,18.14721257,167.82,167.78,4.20632435]
[1641288648655,21.14721257,167.82,167.78,4.20632435]
[1641288648853,18.14721257,167.82,167.78,4.20632435]
[1641288649053,18.14721257,167.82,167.77,6.0]
[1641288649054,12.61821257,167.8,167.77,6.0]
[1641288650554,27.66479,167.81,167.77,6.0]
[1641288655358,3.05832919,167.8,167.77,6.0]
[1641288656759,3.05832919,167.8,167.77,10.20632435]
[1641288657759,15.67654176,167.8,167.77,6.0]
[1641288658559,3.05832919,167.8,167.77,10.20632435]
[1641288659162,3.05832919,167.8,167.77,6.0]
[1641288659759,40.28300257,167.81,167.77,6.0]
[1641288659961,40.28300257,167.81,167.77,10.20681885]
[1641288660758,40.28300257,167.81,167.77,6.0]
[1641288660966,3.07096747,167.8,167.77,6.0]
[1641288661562,4.20677169,167.79,167.78,5.34264242]
[1641288662362,3.07078055,167.8,167.77,6.0]
[1641288663462,27.66479,167.81,167.79,4.2066221]
[1641288663861,27.66479,167.81,167.77,6.0]
[1641288665464,3.07072638,167.8,167.79,4.20662621]
[1641288665865,27.66479,167.81,167.77,6.0]
[1641288666870,3.07140195,167.8,167.79,4.20718918]
[1641288667367,27.66479,167.81,167.77,6.0]
[1641288668369,3.07141642,167.8,167.79,4.20720123]
[1641288668970,27.66479,167.81,167.77,6.0]
[1641288669976,3.06787121,167.8,167.77,10.20231779]
[1641288670578,27.66479,167.81,167.77,6.0]
[1641288671279,3.06825886,167.8,167.77,10.20287227]
[1641288671981,3.06825886,167.8,167.77,6.0]
[1641288672179,6.72,167.8,167.77,6.0]
[1641288672780,3.06828997,167.79,167.77,10.2028982]
[1641288673480,27.66479,167.81,167.77,6.0]
[1641288673880,3.0681819,167.8,167.77,10.20280814]
[1641288674080,3.0681819,167.8,167.77,14.20280814]
[1641288674483,12.6200507,167.83,167.77,17.20280814]
[1641288674682,4.6200507,167.83,167.78,4.2026619]
[1641288675581,10.98010567,167.85,167.79,4.20235761]
[1641288676583,90.27039,167.86,167.8,4.20236758]
[1641288677282,90.27039,167.86,167.78,64.6013]
[1641288678384,90.27039,167.86,167.8,4.20236334]
[1641288679086,4.20213257,167.83,167.82,4.20213257]
[1641288679690,4.20213257,167.83,167.78,64.6013]
[1641288679691,90.27039,167.86,167.78,64.6013]
[1641288679888,90.27039,167.86,167.81,4.20230578]
[1641288680087,27.66479,167.86,167.81,4.20230578]
[1641288680990,27.66479,167.86,167.82,4.20579241]
[1641288681192,4.20579241,167.83,167.82,4.20579241]
[1641288681689,27.66479,167.86,167.81,4.0]
[1641288683091,27.66479,167.86,167.79,5.83431861]
[1641288683393,28.80583201,167.86,167.79,5.83431861]
[1641288685394,28.80583201,167.86,167.78,68.6013]
[1641288686197,28.80583201,167.86,167.79,5.83403881]
[1641288686794,28.80583201,167.86,167.78,68.6013]
[1641288687397,28.80583201,167.86,167.79,5.83403465]
[1641288689699,28.80583201,167.86,167.78,68.6013]
[1641288690100,28.80583201,167.86,167.78,71.6013]
[1641288691101,28.80583201,167.86,167.78,68.6013]
[1641288691302,22.13183201,167.86,167.78,68.6013]
[1641288691504,22.13183201,167.86,167.78,71.6013]
[1641288691703,22.13183201,167.86,167.78,68.6013]
[1641288692403,22.13183201,167.86,167.81,4.0]
[1641288697006,22.13183201,167.86,167.78,68.6013]
[1641288697909,27.18783201,167.86,167.78,68.6013]
[1641288700011,27.18783201,167.86,167.78,64.6013]
[1641288700610,27.18783201,167.86,167.78,70.6013]
[1641288700810,27.18783201,167.86,167.79,4.0]
[1641288703016,27.18783201,167.86,167.78,70.6013]
[1641288703215,27.18783201,167.86,167.78,6.0]
[1641288704018,10.99119913,167.85,167.78,6.0]
[1641288704717,10.99119913,167.85,167.79,4.0]
[1641288704917,12.61973342,167.84,167.79,4.0]
[1641288706119,12.61973342,167.84,167.78,66.5507]
[1641288706922,78.90383342,167.85,167.78,66.5507]
[1641288711826,66.2841,167.85,167.79,4.0]
[1641288715227,3.06187481,167.84,167.79,4.0]
[1641288715429,8.87687481,167.84,167.79,4.0]
[1641288716631,5.815,167.84,167.79,4.0]
[1641288717235,5.815,167.84,167.78,94.21549]
[1641288717934,3.06209605,167.83,167.79,1.13364532]
[1641288718934,3.06209605,167.83,167.78,98.21549]
[1641288719636,5.815,167.84,167.78,98.21549]
[1641288719836,5.815,167.84,167.79,1.13365455]
[1641288720737,66.2841,167.85,167.79,1.13365455]
[1641288721137,3.0698658,167.83,167.79,1.13365455]
[1641288721942,3.0698658,167.84,167.79,1.13365455]
[1641288723141,66.2841,167.85,167.8,12.61973342]
[1641288723942,3.06966871,167.84,167.79,19.58842]
[1641288726643,3.06966871,167.84,167.79,1.13365455]
[1641288728544,3.0,167.83,167.79,1.13365455]
[1641288728745,3.06966871,167.84,167.79,1.13365455]
[1641288728945,6.06966871,167.84,167.79,1.13365455]
[1641288729351,3.06966871,167.84,167.78,46.28452342]
[1641288729552,12.61973342,167.82,167.78,33.66479]
[1641288730954,15.68940213,167.82,167.78,33.66479]
[1641288731155,15.68940213,167.82,167.78,6.0]
[1641288731362,30.66479,167.81,167.78,6.0]
[1641288731553,35.48179,167.81,167.78,6.0]
[1641288731754,32.48179,167.81,167.75,9.02]
[1641288732155,15.68940213,167.8,167.75,9.02]
[1641288732654,15.68940213,167.8,167.76,1.13633458]
[1641288733256,18.68940213,167.8,167.76,1.13633458]
[1641288734056,15.68940213,167.79,167.74,1.13633458]
[1641288735058,15.68940213,167.8,167.73,1.13633458]
[1641288735658,15.68940213,167.8,167.72,19.59129163]
[1641288736358,15.68940213,167.8,167.72,23.59129163]
[1641288736958,12.61973342,167.8,167.76,6.0]
[1641288737158,92.63409,167.81,167.76,6.0]
[1641288737561,95.63409,167.81,167.76,6.0]
[1641288737958,3.07091756,167.8,167.77,1.13633458]
[1641288741360,92.63409,167.81,167.76,6.0]
[1641288743061,3.07090882,167.8,167.78,4.20728558]
[1641288743662,27.66479,167.81,167.76,6.0]
[1641288743861,6.217,167.8,167.76,6.0]
[1641288744463,15.69081593,167.79,167.76,6.0]
[1641288745467,3.07108251,167.79,167.76,10.20732193]
[1641288746066,19.06573342,167.8,167.76,6.0]
[1641288746869,3.07090573,167.79,167.76,10.20728301]
[1641288747268,19.06573342,167.8,167.76,6.0]
[1641288748071,3.07089422,167.79,167.76,10.20727342]
[1641288748668,12.61973342,167.8,167.76,6.0]
[1641288749468,12.61973342,167.79,167.76,6.0]
[1641288750068,15.69275031,167.8,167.76,10.20724722]
[1641288750770,15.69275031,167.8,167.76,6.0]
[1641288751368,15.69275031,167.8,167.76,10.488]
[1641288751569,15.69275031,167.8,167.76,14.69526795]
[1641288752071,27.66479,167.81,167.76,10.488]
[1641288752873,15.69277679,167.8,167.76,14.69528825]
[1641288753275,15.69277679,167.8,167.76,10.488]
[1641288753873,27.66479,167.81,167.76,14.69527727]
[1641288754874,27.66479,167.81,167.76,10.488]
[1641288755074,15.69263855,167.8,167.76,10.488]
[1641288755875,27.66479,167.81,167.76,10.488]
[1641288756075,27.66479,167.81,167.76,14.69526906]
[1641288756573,15.69267533,167.8,167.76,10.488]
[1641288757377,27.66479,167.81,167.76,14.69525512]
[1641288757978,15.69270005,167.8,167.76,10.488]
[1641288758180,21.48770005,167.8,167.76,6.0]
[1641288758780,3.07081199,167.79,167.77,5.34359779]
[1641288759379,3.0704359,167.81,167.76,18.61973342]
[1641288760282,12.62067444,167.84,167.76,12.61973342]
[1641288760483,75.15427444,167.85,167.78,4.19770774]
[1641288762085,3.06322639,167.84,167.8,4.19731334]
[1641288762883,62.5336,167.85,167.78,1.13408695]
[1641288763387,3.06322422,167.84,167.8,4.19731153]
[1641288763993,62.5336,167.85,167.78,1.13408695]
[1641288764188,62.5336,167.85,167.78,7.40108695]
[1641288764790,62.5336,167.85,167.81,4.19714412]
[1641288765688,62.5336,167.85,167.79,1.13408695]
[1641288766288,62.5336,167.85,167.81,4.19713143]
[1641288766888,62.5336,167.85,167.79,1.13408695]
[1641288767089,3.06302955,167.84,167.79,4.19714931]
[1641288767690,3.06302955,167.84,167.78,1.13408695]
[1641288767691,62.5336,167.85,167.77,33.66479]
[1641288768291,3.06302363,167.84,167.79,4.19714437]
[1641288769393,62.5336,167.85,167.77,33.66479]
[1641288769894,3.06299521,167.84,167.79,4.1971207]
[1641288770395,3.06299521,167.84,167.77,33.66479]
[1641288770595,75.15427444,167.85,167.78,4.19721993]
[1641288771195,15.69051992,167.84,167.79,4.20639946]
[1641288771797,15.69051992,167.84,167.77,33.66479]
[1641288772198,12.62067444,167.83,167.78,4.20662792]
[1641288773196,12.62067444,167.82,167.78,1.13648773]
[1641288773798,14.06124975,167.84,167.77,33.66479]
[1641288773999,4.20673644,167.79,167.78,4.20673644]
[1641288774800,3.06984548,167.84,167.77,33.66479]
[1641288775002,4.20690989,167.8,167.78,1.1364519]
[1641288775504,12.62072966,167.83,167.79,4.2069173]
[1641288776405,4.20691092,167.8,167.78,1.13645169]
[1641288776803,4.20668148,167.81,167.77,33.66479]
[1641288777711,62.5336,167.85,167.8,4.20665191]
[1641288778709,4.20349932,167.81,167.77,33.66479]
[1641288779509,3.06786949,167.84,167.8,4.20350131]
[1641288780006,4.20349925,167.81,167.77,33.66479]
[1641288781309,3.06786949,167.84,167.8,4.20342406]
[1641288781909,12.61049797,167.83,167.78,4.20341307]
[1641288782713,12.61049797,167.83,167.77,33.66479]
[1641288782913,12.61049797,167.82,167.77,37.86841281]
[1641288783317,4.20332592,167.8,167.78,5.33899044]
[1641288784616,15.67836746,167.84,167.77,33.66479]
[1641288785015,4.20331685,167.8,167.78,5.33898318]
[1641288786016,15.67836746,167.84,167.77,33.66479]
[1641288786220,4.20309105,167.81,167.78,4.0]
[1641288787116,3.06786949,167.84,167.8,4.20306346]
[1641288787917,4.20289731,167.82,167.78,1.13575024]
[1641288788517,3.06713494,167.84,167.8,4.2028872]
[1641288789317,3.06713494,167.84,167.77,6.0]
[1641288789518,4.20289931,167.83,167.82,4.20289931]
[1641288790218,3.0696435,167.84,167.79,1.13574984]
[1641288790622,3.0696435,167.84,167.8,6.0]
[1641288791219,4.20606017,167.83,167.8,6.0]
[1641288792019,61.6735,167.85,167.8,6.0]
[1641288792221,3.06946743,167.84,167.81,1.13661699]
[1641288792820,5.422,167.84,167.8,6.0]
[1641288793021,4.20618494,167.83,167.8,6.0]
[1641288793520,5.422,167.84,167.8,6.0]
[1641288793722,5.422,167.84,167.81,1.13660714]
[1641288794721,4.20609454,167.83,167.8,6.0]
[1641288795222,5.422,167.84,167.81,1.13661387]
[1641288796222,5.422,167.84,167.8,6.0]
[1641288796422,4.20610133,167.83,167.8,6.0]
[1641288796823,5.422,167.84,167.8,6.0]
[1641288797022,3.06947052,167.83,167.81,1.13661648]
[1641288797622,5.422,167.84,167.8,6.0]
[1641288797823,61.6735,167.85,167.8,6.0]
[1641288798826,3.06202626,167.84,167.8,6.0]
[1641288799026,7.91602626,167.84,167.8,6.0]
[1641288799427,4.854,167.84,167.8,6.0]
[1641288800728,6.06269462,167.83,167.8,6.0]
[1641288801428,3.06269462,167.83,167.8,6.0]
[1641288801929,3.06269462,167.82,167.8,6.0]
[1641288802130,30.72748462,167.82,167.8,6.0]
[1641288802629,6.06327371,167.81,167.8,6.0]
[1641288802829,3.06327371,167.81,167.8,6.0]
[1641288804636,12.01955461,167.81,167.73,12.61826101]
[1641288804833,3.0,167.78,167.73,12.61826101]
[1641288805032,9.639,167.78,167.73,12.61826101]
[1641288805235,3.0,167.77,167.73,12.61826101]
[1641288805634,8.9578778,167.76,167.71,67.94784101]
[1641288806234,27.66479,167.72,167.71,12.61826101]
[1641288806438,37.94126557,167.72,167.67,32.03357599]
[1641288806634,3.0,167.68,167.67,32.03357599]
[1641288806833,5.66,167.68,167.67,32.03357599]
[1641288807238,8.66,167.68,167.67,11.87917599]
[1641288807735,8.66,167.68,167.59,27.66479]
[1641288807736,5.66,167.68,167.65,4.1996313]
[1641288807937,3.06651457,167.71,167.65,4.1996313]
[1641288808135,6.06651457,167.71,167.65,4.1996313]
[1641288808335,27.66479,167.69,167.65,4.1996313]
[1641288808537,31.81979,167.69,167.65,4.1996313]
[1641288809036,31.81979,167.69,167.67,4.21006249]
[1641288809436,4.155,167.69,167.67,4.21006249]
[1641288809639,3.06651457,167.71,167.67,4.21006249]
[1641288810036,3.0,167.7,167.68,4.20977976]
[1641288810237,30.24929001,167.69,167.64,1.13311672]
[1641288810436,2.58450001,167.65,167.6,15.54651623]
[1641288810637,2.58450001,167.62,167.6,15.54651623]
[1641288810836,2.58450001,167.64,167.6,5.83010323]
[1641288811237,2.58450001,167.63,167.6,5.83010323]
[1641288811637,6.352,167.65,167.6,5.83010323]
[1641288811837,2.58450001,167.63,167.56,0.41549999]
[1641288812246,27.66479,167.62,167.53,33.49489323]
[1641288812440,30.24929001,167.62,167.53,33.49489323]
[1641288812839,30.24929001,167.62,167.56,0.41549999]
[1641288813040,5.96338482,167.61,167.53,33.49489323]
[1641288813340,8.54788483,167.61,167.54,0.41549999]
[1641288813740,5.96338482,167.61,167.55,0.41549999]
[1641288814040,27.66479,167.62,167.54,5.83010323]
[1641288814239,30.24929001,167.62,167.56,0.41549999]
[1641288814440,27.66479,167.62,167.56,0.41549999]
[1641288814639,27.66479,167.62,167.54,5.83010323]
[1641288814842,27.66479,167.62,167.55,0.41549999]
[1641288815040,27.66479,167.62,167.54,5.83010323]
[1641288815243,27.66479,167.62,167.56,0.41549999]
[1641288815442,30.24929001,167.62,167.55,0.41549999]
[1641288815642,30.24929001,167.62,167.54,5.83010323]
[1641288815643,27.66479,167.62,167.54,5.83010323]
[1641288815841,27.66479,167.62,167.57,0.41549999]
[1641288816442,27.66479,167.62,167.56,0.41549999]
[1641288816644,27.66479,167.62,167.57,0.41549999]
[1641288816846,27.66479,167.62,167.59,0.41549999]
[1641288817245,27.66479,167.62,167.54,5.83010323]
[1641288817946,2.58450001,167.61,167.54,5.83010323]
[1641288818147,27.66479,167.62,167.58,0.41549999]
[1641288820152,27.66479,167.62,167.59,0.41549999]
[1641288821255,27.66479,167.62,167.58,6.0]
[1641288821453,33.65879,167.62,167.58,6.0]
[1641288821654,33.65879,167.62,167.58,6.41549999]
[1641288821853,36.24329001,167.62,167.58,6.0]
[1641288822053,33.65879,167.62,167.58,6.0]
[1641288823656,5.96356263,167.6,167.58,6.0]
[1641288827364,33.65879,167.62,167.58,6.0]
[1641288827767,11.01952055,167.61,167.58,6.0]
[1641288828565,27.66479,167.62,167.58,6.0]
[1641288829769,27.66479,167.62,167.58,6.41549999]
[1641288830070,27.66479,167.62,167.58,6.0]
[1641288830771,27.66479,167.62,167.58,6.41549999]
[1641288830971,2.58450001,167.61,167.58,6.0]
[1641288831170,2.58450001,167.59,167.58,6.0]
[1641288831371,5.211,167.61,167.58,6.0]
[1641288832372,7.79550001,167.61,167.58,6.0]
[1641288833372,2.58450001,167.59,167.58,6.0]
[1641288834877,2.58450001,167.6,167.58,6.0]
[1641288835775,19.56955815,167.61,167.58,6.0]
[1641288835975,2.58450001,167.6,167.58,6.0]
[1641288836177,2.58450001,167.59,167.58,6.0]
[1641288836478,2.58450001,167.6,167.58,6.0]
[1641288836777,2.58450001,167.59,167.58,6.0]
[1641288837077,2.58450001,167.59,167.53,0.41549999]
[1641288837477,2.58450001,167.59,167.52,0.41549999]
[1641288837478,12.63804756,167.59,167.52,0.41549999]
[1641288837678,15.22254757,167.59,167.52,0.41549999]
[1641288837877,15.22254757,167.59,167.51,12.63804756]
[1641288837878,15.22254757,167.59,167.53,0.41549999]
[1641288838081,2.58450001,167.58,167.53,0.41549999]
[1641288838277,15.22254757,167.59,167.52,0.41549999]
[1641288838477,27.66479,167.56,167.52,0.41549999]
[1641288838880,30.24929001,167.56,167.52,0.41549999]
[1641288839081,27.66479,167.56,167.52,0.41549999]
[1641288840379,27.66479,167.56,167.51,18.46756972]
[1641288840878,2.58450001,167.55,167.52,0.41549999]
[1641288841079,27.66479,167.56,167.51,18.46756972]
[1641288841282,31.85779,167.56,167.53,0.41549999]
[1641288841483,31.85779,167.56,167.51,0.41549999]
[1641288841980,31.85779,167.56,167.5,27.66479]
[1641288842181,31.85779,167.56,167.53,6.0]
[1641288845584,2.58450001,167.54,167.53,6.0]
[1641288845785,34.44229001,167.56,167.53,6.0]
[1641288845985,31.85779,167.56,167.53,6.0]
[1641288846586,34.44229001,167.56,167.53,6.0]
[1641288846790,31.85779,167.56,167.53,6.0]
[1641288846987,34.44229001,167.56,167.53,6.0]
[1641288847187,31.85779,167.56,167.53,6.0]
[1641288850388,2.58450001,167.54,167.53,6.0]
[1641288851589,2.58450001,167.54,167.53,7.13270246]
[1641288852590,2.58450001,167.54,167.53,6.0]
[1641288852790,11.63242584,167.54,167.53,1.0]
[1641288853593,11.63242584,167.54,167.49,0.08]
[1641288853792,2.58450001,167.52,167.49,0.08]
[1641288854090,7.33150001,167.52,167.49,0.08]
[1641288854395,3.08151671,167.51,167.49,0.08]
[1641288854892,3.08151671,167.51,167.48,0.08]
[1641288855292,3.08151671,167.52,167.5,1.13252407]
[1641288856293,27.66479,167.53,167.49,1.13252407]
[1641288856692,27.66479,167.53,167.49,1.54802406]
[1641288857294,3.08156027,167.52,167.49,1.54802406]
[1641288857696,8.57756027,167.52,167.49,1.13252407]
[1641288857893,11.16206028,167.52,167.49,1.13252407]
[1641288858093,8.57756027,167.52,167.5,1.13252407]
[1641288858995,8.57756027,167.52,167.49,6.0]
[1641288859196,3.08156027,167.51,167.49,6.0]
[1641288859594,3.08156027,167.51,167.49,6.41549999]